[Event "Late-Titled-Tuesday-Blitz-March-12-2024"]
[Site "Chess.com"]
[Date "2024.03.12"]
[Round "2"]
[White "RichardShtivelband"]
[Black "APOKALIPSA13"]
[Result "1-0"]
[WhiteElo "2494"]
[BlackElo "2194"]
[TimeControl "180+1"]
[EndTime "14:13:28 PDT"]
[Termination "RichardShtivelband won by resignation"]

1. d4 {[%clk 0:03:00.9]} 1... d5 {[%clk 0:02:57.1]} 2. c4 {[%clk 0:03:00.3]}
2... Nf6 {[%clk 0:02:56.4]} 3. cxd5 {[%clk 0:02:59.9]} 3... Nxd5 {[%clk
0:02:56.4]} 4. e4 {[%clk 0:03:00.1]} 4... Nb6 {[%clk 0:02:56.5]} 5. Nc3 {[%clk
0:03:00.3]} 5... e5 {[%clk 0:02:54.4]} 6. d5 {[%clk 0:02:58.4]} 6... Bc5 {[%clk
0:02:53.6]} 7. Nf3 {[%clk 0:02:55.8]} 7... O-O {[%clk 0:02:51.3]} 8. h3 {[%clk
0:02:53.9]} 8... f5 {[%clk 0:02:50.2]} 9. Bd3 {[%clk 0:02:51.2]} 9... Qe7 {[%clk
0:02:38.2]} 10. Qe2 {[%clk 0:02:45.7]} 10... f4 {[%clk 0:02:36]} 11. Bd2 {[%clk
0:02:42.6]} 11... a6 {[%clk 0:02:33.5]} 12. O-O-O {[%clk 0:02:42]} 12... Bd6
{[%clk 0:02:31.4]} 13. g3 {[%clk 0:02:37.5]} 13... N8d7 {[%clk 0:02:25]} 14.
Rde1 {[%clk 0:02:30]} 14... fxg3 {[%clk 0:02:15.8]} 15. fxg3 {[%clk 0:02:30]}
15... Nc5 {[%clk 0:02:15.4]} 16. Bc2 {[%clk 0:02:29.1]} 16... Bd7 {[%clk
0:02:13]} 17. Ref1 {[%clk 0:02:11.9]} 17... Rae8 {[%clk 0:02:06.7]} 18. Bg5
{[%clk 0:02:08]} 18... Qf7 {[%clk 0:02:05.1]} 19. Nh4 {[%clk 0:02:07.3]} 19...
Be7 {[%clk 0:01:43.1]} 20. Be3 {[%clk 0:01:54.6]} 20... Bf6 {[%clk 0:01:42.3]}
21. Bxc5 {[%clk 0:01:53]} 1-0

[Event "Late-Titled-Tuesday-Blitz-March-12-2024"]
[Site "Chess.com"]
[Date "2024.03.12"]
[Round "2"]
[White "Casper"]
[Black "dodorox"]
[Result "0-1"]
[WhiteElo "2470"]
[BlackElo "2159"]
[TimeControl "180+1"]
[EndTime "14:13:42 PDT"]
[Termination "dodorox won by resignation"]

1. e4 {[%clk 0:03:00.9]} 1... e6 {[%clk 0:02:58]} 2. b3 {[%clk 0:02:47.6]} 2...
d5 {[%clk 0:02:57]} 3. Bb2 {[%clk 0:02:48.1]} 3... dxe4 {[%clk 0:02:50.1]} 4.
Nc3 {[%clk 0:02:48.7]} 4... f5 {[%clk 0:02:48.3]} 5. d3 {[%clk 0:02:43.4]} 5...
exd3 {[%clk 0:02:47.5]} 6. Bxd3 {[%clk 0:02:44.3]} 6... Nf6 {[%clk 0:02:45.3]}
7. Nf3 {[%clk 0:02:44.7]} 7... Bd6 {[%clk 0:02:40.7]} 8. Qe2 {[%clk 0:02:44.6]}
8... O-O {[%clk 0:02:37.6]} 9. O-O-O {[%clk 0:02:44]} 9... Qe7 {[%clk
0:02:36.4]} 10. Rhe1 {[%clk 0:02:41.3]} 10... Re8 {[%clk 0:02:25.9]} 11. Nb5
{[%clk 0:02:36.2]} 11... Nc6 {[%clk 0:02:21.2]} 12. Ng5 {[%clk 0:02:17.8]} 12...
h6 {[%clk 0:02:09.7]} 13. Nxd6 {[%clk 0:02:05.7]} 13... cxd6 {[%clk 0:02:00.3]}
14. Nf3 {[%clk 0:02:03.7]} 14... e5 {[%clk 0:01:54.6]} 15. Nh4 {[%clk
0:02:03.1]} 15... e4 {[%clk 0:01:41.8]} 16. Bc4+ {[%clk 0:02:01.1]} 16... d5
{[%clk 0:01:29.3]} 17. Bxd5+ {[%clk 0:01:46.1]} 17... Nxd5 {[%clk 0:01:24.6]}
18. Rxd5 {[%clk 0:01:45.6]} 18... Qxh4 {[%clk 0:01:22.7]} 0-1

[Event "Late-Titled-Tuesday-Blitz-March-12-2024"]
[Site "Chess.com"]
[Date "2024.03.12"]
[Round "2"]
[White "Caisachess"]
[Black "robertoalejandro10"]
[Result "1-0"]
[WhiteElo "2362"]
[BlackElo "2542"]
[TimeControl "180+1"]
[EndTime "14:14:13 PDT"]
[Termination "Caisachess won by resignation"]

1. e4 {[%clk 0:03:00.9]} 1... c5 {[%clk 0:02:51.8]} 2. Nf3 {[%clk 0:02:58.9]}
2... Nc6 {[%clk 0:02:51.6]} 3. c3 {[%clk 0:02:56.3]} 3... g6 {[%clk 0:02:47.6]}
4. d4 {[%clk 0:02:55.8]} 4... cxd4 {[%clk 0:02:48.5]} 5. cxd4 {[%clk 0:02:56.7]}
5... Bg7 {[%clk 0:02:48.5]} 6. Nc3 {[%clk 0:02:56.5]} 6... d6 {[%clk 0:02:48.6]}
7. h3 {[%clk 0:02:56.6]} 7... Nf6 {[%clk 0:02:47.6]} 8. Bd3 {[%clk 0:02:56.6]}
8... O-O {[%clk 0:02:47.8]} 9. O-O {[%clk 0:02:57.2]} 9... b6 {[%clk 0:02:46.3]}
10. a3 {[%clk 0:02:57.7]} 10... Bb7 {[%clk 0:02:45.8]} 11. Re1 {[%clk
0:02:58.4]} 11... Rc8 {[%clk 0:02:46.4]} 12. Bg5 {[%clk 0:02:56.5]} 12... Na5
{[%clk 0:02:42.7]} 13. Qe2 {[%clk 0:02:55.2]} 13... Re8 {[%clk 0:02:41.4]} 14.
Rad1 {[%clk 0:02:53.8]} 14... Qc7 {[%clk 0:02:36.6]} 15. e5 {[%clk 0:02:53.6]}
15... dxe5 {[%clk 0:02:36.2]} 16. dxe5 {[%clk 0:02:54.5]} 16... Nd5 {[%clk
0:02:19.1]} 17. Nxd5 {[%clk 0:02:48.6]} 17... Bxd5 {[%clk 0:02:20]} 18. Bb5
{[%clk 0:02:48.8]} 18... Bc6 {[%clk 0:02:18.2]} 19. Bxc6 {[%clk 0:02:45.4]}
19... Qxc6 {[%clk 0:02:16.5]} 20. Rc1 {[%clk 0:02:34.8]} 20... Qb7 {[%clk
0:02:09.4]} 21. Rxc8 {[%clk 0:02:32.9]} 21... Rxc8 {[%clk 0:02:10.3]} 22. Rd1
{[%clk 0:02:29.3]} 22... h6 {[%clk 0:02:05]} 23. Bh4 {[%clk 0:02:27.4]} 23... e6
{[%clk 0:02:00.7]} 24. Bf6 {[%clk 0:02:23.1]} 24... Nc6 {[%clk 0:01:55.3]} 25.
Qe4 {[%clk 0:02:19.9]} 25... Na5 {[%clk 0:01:49]} 26. Qxb7 {[%clk 0:02:16.3]}
26... Nxb7 {[%clk 0:01:49.9]} 27. Rd7 {[%clk 0:02:16.3]} 27... Na5 {[%clk
0:01:40]} 28. Rxa7 {[%clk 0:02:15]} 28... Rc1+ {[%clk 0:01:32.7]} 29. Kh2 {[%clk
0:02:14.7]} 29... Rc2 {[%clk 0:01:33.1]} 30. b4 {[%clk 0:02:06.7]} 30... Nc4
{[%clk 0:01:29.4]} 31. Nd4 {[%clk 0:01:59.4]} 31... Bxf6 {[%clk 0:01:15.6]} 32.
Nxc2 {[%clk 0:01:58.7]} 32... Bxe5+ {[%clk 0:01:15.2]} 33. Kg1 {[%clk
0:01:58.5]} 33... Bd4 {[%clk 0:01:10.9]} 34. Nxd4 {[%clk 0:01:58.1]} 1-0

[Event "Late-Titled-Tuesday-Blitz-March-12-2024"]
[Site "Chess.com"]
[Date "2024.03.12"]
[Round "2"]
[White "baki83"]
[Black "Vadim_Galchenko"]
[Result "1-0"]
[WhiteElo "2842"]
[BlackElo "2577"]
[TimeControl "180+1"]
[EndTime "14:14:16 PDT"]
[Termination "baki83 won by resignation"]

1. e4 {[%clk 0:03:00.9]} 1... e6 {[%clk 0:03:00.1]} 2. d4 {[%clk 0:03:00.7]}
2... d5 {[%clk 0:03:00.6]} 3. Nd2 {[%clk 0:03:01.2]} 3... c5 {[%clk 0:03:00.3]}
4. Ngf3 {[%clk 0:03:00.8]} 4... cxd4 {[%clk 0:02:59.5]} 5. Nxd4 {[%clk
0:03:00.9]} 5... Nc6 {[%clk 0:02:59]} 6. Bb5 {[%clk 0:03:00.4]} 6... Bd7 {[%clk
0:02:59.3]} 7. Nxc6 {[%clk 0:03:00.7]} 7... bxc6 {[%clk 0:03:00]} 8. Bd3 {[%clk
0:03:01]} 8... Qc7 {[%clk 0:02:59.2]} 9. O-O {[%clk 0:03:00.7]} 9... Nf6 {[%clk
0:02:51.3]} 10. Re1 {[%clk 0:02:53.2]} 10... h5 {[%clk 0:02:36.5]} 11. e5 {[%clk
0:02:50.6]} 11... Ng4 {[%clk 0:02:36.2]} 12. Nf3 {[%clk 0:02:42.1]} 12... Bc5
{[%clk 0:02:34.2]} 13. Re2 {[%clk 0:02:40.1]} 13... g6 {[%clk 0:02:19.9]} 14.
Bg5 {[%clk 0:02:24]} 14... Qb6 {[%clk 0:02:16.4]} 15. Qe1 {[%clk 0:02:14.1]}
15... Qxb2 {[%clk 0:02:09.4]} 16. h3 {[%clk 0:02:10.1]} 16... Nh6 {[%clk
0:01:59.8]} 17. Bf6 {[%clk 0:01:40.8]} 17... O-O {[%clk 0:01:52.7]} 18. Rb1
{[%clk 0:01:35.2]} 18... Qa3 {[%clk 0:01:38.1]} 19. Qd2 {[%clk 0:01:16.6]} 19...
Kh7 {[%clk 0:01:37.3]} 20. Ng5+ {[%clk 0:01:16.2]} 20... Kg8 {[%clk 0:01:37.6]}
21. Nxe6 {[%clk 0:01:08.7]} 1-0

[Event "Late-Titled-Tuesday-Blitz-March-12-2024"]
[Site "Chess.com"]
[Date "2024.03.12"]
[Round "2"]
[White "RandomNoob04"]
[Black "artin10862"]
[Result "1-0"]
[WhiteElo "2625"]
[BlackElo "2894"]
[TimeControl "180+1"]
[EndTime "14:14:34 PDT"]
[Termination "RandomNoob04 won by resignation"]

1. e4 {[%clk 0:03:00.9]} 1... e5 {[%clk 0:02:58.6]} 2. d4 {[%clk 0:03:01.5]}
2... exd4 {[%clk 0:02:53.5]} 3. Qxd4 {[%clk 0:03:02.4]} 3... Nc6 {[%clk
0:02:53.5]} 4. Qe3 {[%clk 0:03:03]} 4... g6 {[%clk 0:02:47]} 5. Nc3 {[%clk
0:03:00.9]} 5... Bg7 {[%clk 0:02:47.6]} 6. h4 {[%clk 0:03:00.6]} 6... Nf6 {[%clk
0:02:46.3]} 7. h5 {[%clk 0:02:59.9]} 7... Nxh5 {[%clk 0:02:45.3]} 8. Be2 {[%clk
0:03:00.1]} 8... Nf6 {[%clk 0:02:38.5]} 9. e5 {[%clk 0:03:00.4]} 9... Ng8 {[%clk
0:02:37.9]} 10. Nf3 {[%clk 0:03:01.1]} 10... Nge7 {[%clk 0:02:37]} 11. Bd2
{[%clk 0:02:51]} 11... d5 {[%clk 0:02:32.5]} 12. exd6 {[%clk 0:02:47.5]} 12...
cxd6 {[%clk 0:02:28.8]} 13. O-O-O {[%clk 0:02:44.4]} 13... Be6 {[%clk
0:02:28.4]} 14. Ne4 {[%clk 0:02:39.8]} 14... Nd5 {[%clk 0:02:20.9]} 15. Qa3
{[%clk 0:02:39.6]} 15... O-O {[%clk 0:02:15]} 16. Bh6 {[%clk 0:02:24.5]} 16...
Qa5 {[%clk 0:02:00]} 17. Qxa5 {[%clk 0:02:06.3]} 17... Nxa5 {[%clk 0:02:00.9]}
18. Nfg5 {[%clk 0:01:56.9]} 18... Bxh6 {[%clk 0:01:35.1]} 19. Rxh6 {[%clk
0:01:56.4]} 19... Bf5 {[%clk 0:01:35.8]} 20. Rxd5 {[%clk 0:01:48.4]} 20... f6
{[%clk 0:01:29.7]} 21. Nxf6+ {[%clk 0:01:34.9]} 21... Rxf6 {[%clk 0:01:28.4]}
22. Rxa5 {[%clk 0:01:34.8]} 22... Rc8 {[%clk 0:01:20.1]} 23. c3 {[%clk
0:01:30.9]} 23... a6 {[%clk 0:01:14.8]} 24. Rxh7 {[%clk 0:01:23.4]} 1-0

[Event "Late-Titled-Tuesday-Blitz-March-12-2024"]
[Site "Chess.com"]
[Date "2024.03.12"]
[Round "2"]
[White "betta2004"]
[Black "Veleamater"]
[Result "1-0"]
[WhiteElo "2546"]
[BlackElo "2318"]
[TimeControl "180+1"]
[EndTime "14:14:35 PDT"]
[Termination "betta2004 won by resignation"]

1. d4 {[%clk 0:02:59.9]} 1... Nf6 {[%clk 0:02:59.6]} 2. Nc3 {[%clk 0:03:00.8]}
2... g6 {[%clk 0:03:00.2]} 3. e4 {[%clk 0:03:00.7]} 3... d6 {[%clk 0:03:00.7]}
4. Bf4 {[%clk 0:03:00.8]} 4... Bg7 {[%clk 0:03:01.1]} 5. Qd2 {[%clk 0:03:00.6]}
5... O-O {[%clk 0:03:02]} 6. O-O-O {[%clk 0:03:00.3]} 6... Re8 {[%clk
0:02:59.4]} 7. f3 {[%clk 0:02:58.2]} 7... Nbd7 {[%clk 0:02:58.4]} 8. Bh6 {[%clk
0:02:57.2]} 8... Bh8 {[%clk 0:02:57.4]} 9. h4 {[%clk 0:02:54.8]} 9... e5 {[%clk
0:02:55.7]} 10. d5 {[%clk 0:02:45.8]} 10... Nf8 {[%clk 0:02:43.2]} 11. g4 {[%clk
0:02:44.5]} 11... a6 {[%clk 0:02:40.4]} 12. h5 {[%clk 0:02:41.7]} 12... b5
{[%clk 0:02:37.1]} 13. hxg6 {[%clk 0:02:35.8]} 13... fxg6 {[%clk 0:02:33.8]} 14.
Qh2 {[%clk 0:02:34.1]} 14... Bd7 {[%clk 0:02:22.1]} 15. Nh3 {[%clk 0:02:34]}
15... Qe7 {[%clk 0:02:21.4]} 16. Ng5 {[%clk 0:02:33.6]} 16... c5 {[%clk
0:02:20.8]} 17. dxc6 {[%clk 0:02:32.9]} 17... Bxc6 {[%clk 0:02:20.2]} 18. Qh4
{[%clk 0:02:26.9]} 18... Ra7 {[%clk 0:02:14.5]} 19. Bd3 {[%clk 0:02:22.9]} 19...
Rc7 {[%clk 0:02:12]} 20. Nd5 {[%clk 0:02:22.7]} 20... Bxd5 {[%clk 0:02:08.1]}
21. exd5 {[%clk 0:02:23.6]} 21... Nxd5 {[%clk 0:02:01.2]} 22. Bxf8 {[%clk
0:02:21.5]} 22... Qxf8 {[%clk 0:01:48.7]} 23. Bxg6 {[%clk 0:02:15.9]} 23... Qf4+
{[%clk 0:01:37]} 24. Kb1 {[%clk 0:02:15.6]} 24... Bf6 {[%clk 0:01:35.9]} 25.
Bxh7+ {[%clk 0:02:13.9]} 25... Kf8 {[%clk 0:01:35.8]} 26. Qh6+ {[%clk
0:02:13.5]} 26... Bg7 {[%clk 0:01:35.8]} 27. Ne6+ {[%clk 0:02:12.4]} 27... Rxe6
{[%clk 0:01:33.5]} 28. Qxe6 {[%clk 0:02:13.3]} 28... Ne7 {[%clk 0:01:09.2]} 29.
Qxd6 {[%clk 0:02:05.8]} 29... Rc8 {[%clk 0:01:05.3]} 30. Bg6 {[%clk 0:02:02.4]}
30... Qc4 {[%clk 0:00:44]} 31. Qd8+ {[%clk 0:02:00]} 1-0

[Event "Late-Titled-Tuesday-Blitz-March-12-2024"]
[Site "Chess.com"]
[Date "2024.03.12"]
[Round "2"]
[White "epiclord678"]
[Black "marcodobrikov"]
[Result "0-1"]
[WhiteElo "2411"]
[BlackElo "2607"]
[TimeControl "180+1"]
[EndTime "14:14:43 PDT"]
[Termination "marcodobrikov won on time"]

1. e4 {[%clk 0:03:00.9]} 1... g6 {[%clk 0:02:59.2]} 2. d4 {[%clk 0:03:00.9]}
2... Bg7 {[%clk 0:02:59.6]} 3. Nc3 {[%clk 0:02:59.5]} 3... e6 {[%clk 0:03:00.3]}
4. Nf3 {[%clk 0:02:55.7]} 4... d5 {[%clk 0:03:00.8]} 5. e5 {[%clk 0:02:45.8]}
5... a6 {[%clk 0:03:00.8]} 6. Be3 {[%clk 0:02:38.5]} 6... h5 {[%clk 0:03:01]} 7.
Bd3 {[%clk 0:02:32.5]} 7... Nh6 {[%clk 0:03:01]} 8. Bg5 {[%clk 0:02:13.5]} 8...
Qd7 {[%clk 0:03:00.7]} 9. Ne2 {[%clk 0:02:00.7]} 9... b6 {[%clk 0:02:56.1]} 10.
Nf4 {[%clk 0:01:47.1]} 10... Nf5 {[%clk 0:02:56.3]} 11. h4 {[%clk 0:01:23.7]}
11... a5 {[%clk 0:02:56.1]} 12. Bxf5 {[%clk 0:01:17.5]} 12... gxf5 {[%clk
0:02:57]} 13. Nd2 {[%clk 0:01:09.7]} 13... c5 {[%clk 0:02:54.1]} 14. Nxh5 {[%clk
0:00:58]} 14... Rh7 {[%clk 0:02:45.2]} 15. Nxg7+ {[%clk 0:00:37.8]} 15... Rxg7
{[%clk 0:02:46.1]} 16. c3 {[%clk 0:00:37.8]} 16... Nc6 {[%clk 0:02:45.2]} 17.
Nf3 {[%clk 0:00:36.6]} 17... Ba6 {[%clk 0:02:44.1]} 18. g3 {[%clk 0:00:31.8]}
18... cxd4 {[%clk 0:02:44.2]} 19. Nxd4 {[%clk 0:00:20.9]} 19... Nxe5 {[%clk
0:02:41.2]} 20. Qd2 {[%clk 0:00:10.8]} 20... Nd3+ {[%clk 0:02:37.6]} 21. Kd1
{[%clk 0:00:11]} 21... Nc5 {[%clk 0:02:29.9]} 22. h5 {[%clk 0:00:07.7]} 22...
Ne4 {[%clk 0:02:30.1]} 23. h6 {[%clk 0:00:04.7]} 23... Rxg5 {[%clk 0:02:29.2]}
24. h7 {[%clk 0:00:03]} 24... O-O-O {[%clk 0:02:27.9]} 25. Qf4 {[%clk
0:00:02.1]} 25... Rh8 {[%clk 0:02:22.3]} 0-1

[Event "Late-Titled-Tuesday-Blitz-March-12-2024"]
[Site "Chess.com"]
[Date "2024.03.12"]
[Round "2"]
[White "ploxoi"]
[Black "mac0504"]
[Result "0-1"]
[WhiteElo "2439"]
[BlackElo "2701"]
[TimeControl "180+1"]
[EndTime "14:14:44 PDT"]
[Termination "mac0504 won by checkmate"]

1. d4 {[%clk 0:03:00.9]} 1... Nf6 {[%clk 0:03:00.2]} 2. c4 {[%clk 0:02:59.3]}
2... g6 {[%clk 0:03:01.1]} 3. g3 {[%clk 0:02:59.2]} 3... Bg7 {[%clk 0:03:01.7]}
4. Nf3 {[%clk 0:03:00]} 4... O-O {[%clk 0:03:02.6]} 5. Bg2 {[%clk 0:03:00.6]}
5... d6 {[%clk 0:03:03.5]} 6. O-O {[%clk 0:02:59.8]} 6... Nc6 {[%clk 0:03:04.2]}
7. h3 {[%clk 0:03:00.1]} 7... e5 {[%clk 0:03:03.9]} 8. d5 {[%clk 0:02:52.8]}
8... Ne7 {[%clk 0:03:04.1]} 9. Nc3 {[%clk 0:02:52.8]} 9... Nd7 {[%clk
0:03:04.6]} 10. e4 {[%clk 0:02:53]} 10... h6 {[%clk 0:03:05.2]} 11. Ne1 {[%clk
0:02:52.3]} 11... f5 {[%clk 0:03:05.6]} 12. Nd3 {[%clk 0:02:52.2]} 12... fxe4
{[%clk 0:03:02.9]} 13. Nxe4 {[%clk 0:02:53.1]} 13... Nf5 {[%clk 0:03:03.3]} 14.
Bd2 {[%clk 0:02:47.3]} 14... Kh7 {[%clk 0:03:02.4]} 15. Rc1 {[%clk 0:02:42]}
15... Nd4 {[%clk 0:03:02.8]} 16. Bc3 {[%clk 0:02:41.3]} 16... Nb6 {[%clk
0:03:03.3]} 17. b3 {[%clk 0:02:38.6]} 17... Bf5 {[%clk 0:02:59.2]} 18. Kh1
{[%clk 0:02:31.9]} 18... a5 {[%clk 0:02:58.5]} 19. g4 {[%clk 0:02:21.8]} 19...
Bd7 {[%clk 0:02:47.8]} 20. g5 {[%clk 0:02:20]} 20... a4 {[%clk 0:02:36.3]} 21.
gxh6 {[%clk 0:02:12.7]} 21... Bxh6 {[%clk 0:02:36]} 22. Bd2 {[%clk 0:02:13.4]}
22... Qh4 {[%clk 0:02:33.6]} 23. Bxh6 {[%clk 0:02:10.8]} 23... Qxh6 {[%clk
0:02:33.4]} 24. Kh2 {[%clk 0:02:08.7]} 24... axb3 {[%clk 0:02:17]} 25. axb3
{[%clk 0:02:09.6]} 25... Kg7 {[%clk 0:01:53]} 26. c5 {[%clk 0:02:06.7]} 26...
Nxd5 {[%clk 0:01:39.5]} 27. cxd6 {[%clk 0:02:05.8]} 27... c6 {[%clk 0:01:30.6]}
28. Nxe5 {[%clk 0:02:05.5]} 28... Qf4+ {[%clk 0:01:29.3]} 29. Ng3 {[%clk
0:02:03.5]} 29... Qxe5 {[%clk 0:01:29.1]} 30. Re1 {[%clk 0:02:00.8]} 30... Qf6
{[%clk 0:01:21.5]} 31. Bxd5 {[%clk 0:02:00.1]} 31... Qxf2+ {[%clk 0:01:12.2]}
32. Kh1 {[%clk 0:01:59.8]} 32... Ra2 {[%clk 0:00:56.5]} 33. Nf1 {[%clk
0:01:54.9]} 33... cxd5 {[%clk 0:00:46.4]} 34. Rc7 {[%clk 0:01:48.7]} 34... Qg2#
{[%clk 0:00:45.8]} 0-1

[Event "Late-Titled-Tuesday-Blitz-March-12-2024"]
[Site "Chess.com"]
[Date "2024.03.12"]
[Round "2"]
[White "Kostukov_Alex"]
[Black "Didici"]
[Result "0-1"]
[WhiteElo "2315"]
[BlackElo "2757"]
[TimeControl "180+1"]
[EndTime "14:14:45 PDT"]
[Termination "Didici won by resignation"]

1. g3 {[%clk 0:03:00.9]} 1... d5 {[%clk 0:02:59.8]} 2. Bg2 {[%clk 0:03:00.9]}
2... c6 {[%clk 0:03:00.4]} 3. d3 {[%clk 0:03:01.3]} 3... e5 {[%clk 0:03:00.3]}
4. e4 {[%clk 0:03:01.6]} 4... dxe4 {[%clk 0:02:59.4]} 5. dxe4 {[%clk 0:03:02.5]}
5... Qc7 {[%clk 0:02:57.3]} 6. Nf3 {[%clk 0:02:51.9]} 6... Nd7 {[%clk
0:02:57.3]} 7. O-O {[%clk 0:02:50.4]} 7... Nc5 {[%clk 0:02:57.6]} 8. Qe2 {[%clk
0:02:48.3]} 8... Bg4 {[%clk 0:02:57.7]} 9. h3 {[%clk 0:02:45.9]} 9... Bh5 {[%clk
0:02:56.8]} 10. g4 {[%clk 0:02:45.3]} 10... Bg6 {[%clk 0:02:57.1]} 11. Nh4
{[%clk 0:02:39.9]} 11... Nf6 {[%clk 0:02:50.2]} 12. Nxg6 {[%clk 0:02:34.9]}
12... hxg6 {[%clk 0:02:49.9]} 13. Bg5 {[%clk 0:02:33.2]} 13... Ne6 {[%clk
0:02:49.7]} 14. Bxf6 {[%clk 0:02:30.4]} 14... gxf6 {[%clk 0:02:50.6]} 15. Nd2
{[%clk 0:02:23]} 15... Bc5 {[%clk 0:02:45.4]} 16. Nb3 {[%clk 0:02:13.7]} 16...
Bb6 {[%clk 0:02:45.3]} 17. a4 {[%clk 0:02:09.9]} 17... a5 {[%clk 0:02:45.2]} 18.
Rad1 {[%clk 0:01:56]} 18... Rh4 {[%clk 0:02:44]} 19. Qf3 {[%clk 0:01:43.9]}
19... Ke7 {[%clk 0:02:43.3]} 20. Rd2 {[%clk 0:01:38.8]} 20... Rah8 {[%clk
0:02:42.4]} 21. Rfd1 {[%clk 0:01:36.4]} 21... Nf4 {[%clk 0:02:32.4]} 22. Qc3
{[%clk 0:00:20.9]} 22... Nxh3+ {[%clk 0:02:04.3]} 23. Kf1 {[%clk 0:00:20.6]}
23... Nf4 {[%clk 0:02:04.4]} 24. Nc5 {[%clk 0:00:19.9]} 24... Rh1+ {[%clk
0:02:03.5]} 0-1

[Event "Late-Titled-Tuesday-Blitz-March-12-2024"]
[Site "Chess.com"]
[Date "2024.03.12"]
[Round "2"]
[White "Moultino06"]
[Black "PapaieDudu"]
[Result "1-0"]
[WhiteElo "2818"]
[BlackElo "2443"]
[TimeControl "180+1"]
[EndTime "14:14:45 PDT"]
[Termination "Moultino06 won by resignation"]

1. Nf3 {[%clk 0:02:28.9]} 1... d5 {[%clk 0:03:00]} 2. b4 {[%clk 0:02:20.5]} 2...
Nf6 {[%clk 0:02:55.3]} 3. Bb2 {[%clk 0:02:20.3]} 3... c5 {[%clk 0:02:54.7]} 4.
bxc5 {[%clk 0:02:20]} 4... Ne4 {[%clk 0:02:53.7]} 5. Nc3 {[%clk 0:02:12.7]} 5...
Nxc5 {[%clk 0:02:44.6]} 6. d4 {[%clk 0:02:12.1]} 6... Nca6 {[%clk 0:02:34.7]} 7.
e4 {[%clk 0:02:11.4]} 7... dxe4 {[%clk 0:02:34.4]} 8. Ne5 {[%clk 0:02:08.3]}
8... e6 {[%clk 0:02:23.8]} 9. Qg4 {[%clk 0:01:55.1]} 9... Qxd4 {[%clk
0:02:06.2]} 10. Bb5+ {[%clk 0:01:44.9]} 10... Nd7 {[%clk 0:01:57.5]} 11. Nxd7
{[%clk 0:01:42.7]} 11... Bxd7 {[%clk 0:01:53.9]} 12. Rd1 {[%clk 0:01:42.6]}
12... f5 {[%clk 0:01:08.9]} 13. Qh5+ {[%clk 0:01:35.9]} 13... g6 {[%clk
0:01:07.8]} 14. Qe2 {[%clk 0:01:33.7]} 14... e5 {[%clk 0:00:54.9]} 15. Rxd4
{[%clk 0:01:32.6]} 15... exd4 {[%clk 0:00:54.8]} 16. Nxe4 {[%clk 0:01:31]} 16...
fxe4 {[%clk 0:00:54]} 17. Qxe4+ {[%clk 0:01:31.2]} 17... Kd8 {[%clk 0:00:52.6]}
18. Qxd4 {[%clk 0:01:28.6]} 18... Bb4+ {[%clk 0:00:50.1]} 19. Kf1 {[%clk
0:01:26.3]} 19... Bd6 {[%clk 0:00:42.1]} 20. Qxd6 {[%clk 0:01:25.6]} 1-0

[Event "Late-Titled-Tuesday-Blitz-March-12-2024"]
[Site "Chess.com"]
[Date "2024.03.12"]
[Round "2"]
[White "Fh2411"]
[Black "tptagain"]
[Result "0-1"]
[WhiteElo "2648"]
[BlackElo "2959"]
[TimeControl "180+1"]
[EndTime "14:15:00 PDT"]
[Termination "tptagain won by resignation"]

1. d4 {[%clk 0:02:54.8]} 1... Nf6 {[%clk 0:02:57.2]} 2. c4 {[%clk 0:02:53.9]}
2... b6 {[%clk 0:02:57.5]} 3. Nc3 {[%clk 0:02:45.9]} 3... Bb7 {[%clk 0:02:55.3]}
4. Nf3 {[%clk 0:02:41.6]} 4... e6 {[%clk 0:02:54.7]} 5. a3 {[%clk 0:02:41.7]}
5... Be7 {[%clk 0:02:50.4]} 6. Bf4 {[%clk 0:02:41.1]} 6... O-O {[%clk
0:02:49.1]} 7. e3 {[%clk 0:02:41.5]} 7... Nh5 {[%clk 0:02:47.1]} 8. Bg3 {[%clk
0:02:40.3]} 8... d6 {[%clk 0:02:45.8]} 9. Bd3 {[%clk 0:02:36.6]} 9... h6 {[%clk
0:02:43]} 10. Bc2 {[%clk 0:02:29.3]} 10... Nd7 {[%clk 0:02:40.4]} 11. Qd3 {[%clk
0:02:22.3]} 11... g6 {[%clk 0:02:38.4]} 12. O-O-O {[%clk 0:01:56.8]} 12... a6
{[%clk 0:02:38.6]} 13. Qd2 {[%clk 0:01:40.6]} 13... Kg7 {[%clk 0:02:35.3]} 14.
Kb1 {[%clk 0:01:37.4]} 14... b5 {[%clk 0:02:27.1]} 15. cxb5 {[%clk 0:01:36.8]}
15... axb5 {[%clk 0:02:28]} 16. Nxb5 {[%clk 0:01:37.2]} 16... Qb8 {[%clk
0:02:28.3]} 17. Bd3 {[%clk 0:01:16.8]} 17... Bxf3 {[%clk 0:02:22.6]} 18. gxf3
{[%clk 0:01:16.2]} 18... c6 {[%clk 0:02:22.9]} 19. Nc3 {[%clk 0:00:56.6]} 19...
Rxa3 {[%clk 0:02:22.7]} 20. e4 {[%clk 0:00:45.6]} 20... Qb6 {[%clk 0:02:03.6]}
21. Bc4 {[%clk 0:00:31.2]} 21... d5 {[%clk 0:01:52.7]} 22. Kc2 {[%clk
0:00:12.6]} 22... dxc4 {[%clk 0:01:48.2]} 23. bxa3 {[%clk 0:00:12.4]} 23... Qb3+
{[%clk 0:01:48.3]} 0-1

[Event "Late-Titled-Tuesday-Blitz-March-12-2024"]
[Site "Chess.com"]
[Date "2024.03.12"]
[Round "2"]
[White "BebeBonito2022"]
[Black "ChainedDowntohell"]
[Result "0-1"]
[WhiteElo "2310"]
[BlackElo "2538"]
[TimeControl "180+1"]
[EndTime "14:15:04 PDT"]
[Termination "ChainedDowntohell won by resignation"]

1. d4 {[%clk 0:03:00.9]} 1... d5 {[%clk 0:02:56.6]} 2. c4 {[%clk 0:03:00.5]}
2... c6 {[%clk 0:02:56.9]} 3. Nc3 {[%clk 0:02:59.9]} 3... Nf6 {[%clk 0:02:56.1]}
4. e3 {[%clk 0:03:00.1]} 4... Bf5 {[%clk 0:02:55.6]} 5. cxd5 {[%clk 0:02:59.8]}
5... cxd5 {[%clk 0:02:55.4]} 6. Qb3 {[%clk 0:02:59.8]} 6... Nc6 {[%clk 0:02:55]}
7. Qxb7 {[%clk 0:02:59.8]} 7... Bd7 {[%clk 0:02:54.6]} 8. Qb3 {[%clk 0:03:00]}
8... Rb8 {[%clk 0:02:49.4]} 9. Qd1 {[%clk 0:02:59.9]} 9... e5 {[%clk 0:02:47.1]}
10. Nge2 {[%clk 0:03:00.1]} 10... Bd6 {[%clk 0:02:44.3]} 11. dxe5 {[%clk
0:03:00.2]} 11... Nxe5 {[%clk 0:02:44]} 12. Nf4 {[%clk 0:02:57.6]} 12... O-O
{[%clk 0:02:40.1]} 13. Be2 {[%clk 0:02:55.1]} 13... Bc6 {[%clk 0:02:22.2]} 14.
O-O {[%clk 0:02:53.6]} 14... Bb4 {[%clk 0:02:16.6]} 15. Bd2 {[%clk 0:02:43.9]}
15... Qe7 {[%clk 0:02:13.6]} 16. a3 {[%clk 0:02:38.6]} 16... Ba5 {[%clk
0:02:05.6]} 17. b4 {[%clk 0:02:36.5]} 17... Bc7 {[%clk 0:02:05.6]} 18. b5 {[%clk
0:02:24.9]} 18... Ba8 {[%clk 0:02:05.1]} 19. a4 {[%clk 0:02:23.2]} 19... Rfd8
{[%clk 0:02:03.7]} 20. Qc2 {[%clk 0:02:07.3]} 20... Rbc8 {[%clk 0:01:59.8]} 21.
Qa2 {[%clk 0:02:01.1]} 21... g5 {[%clk 0:01:53.9]} 22. Nd3 {[%clk 0:01:48.1]}
22... Nc4 {[%clk 0:01:52.7]} 23. Rfd1 {[%clk 0:01:20.6]} 23... Bb8 {[%clk
0:01:49.4]} 24. Nb4 {[%clk 0:00:38.2]} 24... Nxd2 {[%clk 0:01:43.5]} 25. Qxd2
{[%clk 0:00:27.3]} 25... Qxb4 {[%clk 0:01:42.9]} 26. Nxd5 {[%clk 0:00:24]} 26...
Nxd5 {[%clk 0:01:37.7]} 0-1